[Event "Live Chess"]
[Site "Chess.com"]
[Date "2024.06.02"]
[Round "-"]
[White "Demyan7777"]
[Black "ivan_1968"]
[Result "1-0"]
[WhiteElo "1932"]
[BlackElo "1828"]
[TimeControl "300"]
[EndTime "8:56:28 PDT"]
[Termination "Demyan7777 won on time"]

1. e4 {[%clk 0:04:57.4]} 1... c6 {[%clk 0:04:58.6]} 2. d4 {[%clk 0:04:56.1]}
2... d5 {[%clk 0:04:58.5]} 3. exd5 {[%clk 0:04:55.4]} 3... cxd5 {[%clk
0:04:57.3]} 4. c4 {[%clk 0:04:55.1]} 4... Nf6 {[%clk 0:04:55.7]} 5. Nc3 {[%clk
0:04:54.3]} 5... g6 {[%clk 0:04:55]} 6. cxd5 {[%clk 0:04:47.8]} 6... Bg7 {[%clk
0:04:54]} 7. Bc4 {[%clk 0:04:45]} 7... O-O {[%clk 0:04:52.7]} 8. Nf3 {[%clk
0:04:43]} 8... b6 {[%clk 0:04:50.5]} 9. O-O {[%clk 0:04:39.8]} 9... Bb7 {[%clk
0:04:50]} 10. Qb3 {[%clk 0:04:37.7]} 10... Na6 {[%clk 0:04:49]} 11. Bf4 {[%clk
0:04:33.3]} 11... Nc7 {[%clk 0:04:45.5]} 12. Bxc7 {[%clk 0:04:31.3]} 12... Qxc7
{[%clk 0:04:44.3]} 13. Rac1 {[%clk 0:04:30.4]} 13... Rac8 {[%clk 0:04:35]} 14.
Nb5 {[%clk 0:04:26.3]} 14... Qb8 {[%clk 0:04:28.8]} 15. Rfe1 {[%clk 0:04:22.5]}
15... a6 {[%clk 0:04:25]} 16. Nc3 {[%clk 0:04:18]} 16... b5 {[%clk 0:04:23.7]}
17. Bd3 {[%clk 0:04:08.1]} 17... Qd6 {[%clk 0:04:20.9]} 18. Be4 {[%clk
0:04:02.6]} 18... Nxe4 {[%clk 0:04:07.2]} 19. Nxe4 {[%clk 0:03:54.3]} 19... Qxd5
{[%clk 0:04:05.2]} 20. Qxd5 {[%clk 0:03:53.2]} 20... Bxd5 {[%clk 0:04:03.7]} 21.
Nc5 {[%clk 0:03:52.5]} 21... Bxf3 {[%clk 0:03:44.6]} 22. gxf3 {[%clk 0:03:48]}
22... e6 {[%clk 0:03:43.7]} 23. Nxa6 {[%clk 0:03:44.7]} 23... Ra8 {[%clk
0:03:29.1]} 24. Nb4 {[%clk 0:03:43]} 24... Bxd4 {[%clk 0:03:28.2]} 25. b3 {[%clk
0:03:41.5]} 25... Rfc8 {[%clk 0:03:08.8]} 26. Nc6 {[%clk 0:03:38.9]} 26... Bf6
{[%clk 0:03:03.2]} 27. Nb4 {[%clk 0:03:37.9]} 27... Bc3 {[%clk 0:02:57]} 28. Re4
{[%clk 0:03:32.6]} 28... Kg7 {[%clk 0:02:44.4]} 29. Nd3 {[%clk 0:02:39.7]} 29...
Rxa2 {[%clk 0:02:35.5]} 30. Kg2 {[%clk 0:02:38.4]} 30... Rd2 {[%clk 0:02:28.3]}
31. Nf4 {[%clk 0:02:33.1]} 31... b4 {[%clk 0:02:24.3]} 32. Rxb4 {[%clk
0:02:30.4]} 32... Bxb4 {[%clk 0:02:08.1]} 33. Rxc8 {[%clk 0:02:27.1]} 33... Rb2
{[%clk 0:01:54.6]} 34. Rb8 {[%clk 0:02:03.5]} 34... Rxb3 {[%clk 0:01:51.1]} 35.
Rb7 {[%clk 0:01:59.3]} 35... Kf6 {[%clk 0:01:47.9]} 36. Rb6 {[%clk 0:01:51.4]}
36... g5 {[%clk 0:01:45.7]} 37. Nd5+ {[%clk 0:01:48.2]} 37... Ke5 {[%clk
0:01:36.3]} 38. Nxb4 {[%clk 0:01:47]} 38... Rc3 {[%clk 0:01:29.1]} 39. Rb7
{[%clk 0:01:43]} 39... Kf6 {[%clk 0:01:26.8]} 40. Rb6 {[%clk 0:01:38.9]} 40...
Rc1 {[%clk 0:01:24.3]} 41. Nd5+ {[%clk 0:01:36.8]} 41... Kg6 {[%clk 0:01:23]}
42. Ne3 {[%clk 0:01:35.4]} 42... h5 {[%clk 0:01:19.9]} 43. Rb5 {[%clk
0:01:32.6]} 43... f5 {[%clk 0:01:13.7]} 44. Rb6 {[%clk 0:01:30.7]} 44... Kf6
{[%clk 0:01:11.6]} 45. Rb4 {[%clk 0:01:27]} 45... g4 {[%clk 0:01:09.2]} 46. fxg4
{[%clk 0:01:25.3]} 46... hxg4 {[%clk 0:01:07.9]} 47. h3 {[%clk 0:01:18.5]} 47...
gxh3+ {[%clk 0:01:05.8]} 48. Kxh3 {[%clk 0:01:17.3]} 48... e5 {[%clk 0:01:02.5]}
49. Rb6+ {[%clk 0:01:14.7]} 49... Kg5 {[%clk 0:01:01.3]} 50. Rb5 {[%clk
0:01:13.8]} 50... Kf4 {[%clk 0:00:50.4]} 51. Kg2 {[%clk 0:01:11.6]} 51... Rc8
{[%clk 0:00:43.6]} 52. Rb7 {[%clk 0:01:08]} 52... Rg8+ {[%clk 0:00:41.9]} 53.
Kf1 {[%clk 0:01:05.5]} 53... e4 {[%clk 0:00:38]} 54. Rf7 {[%clk 0:01:03.4]}
54... Rg5 {[%clk 0:00:36.2]} 55. Ke2 {[%clk 0:01:00.6]} 55... Ke5 {[%clk
0:00:34.4]} 56. Rb7 {[%clk 0:00:44.5]} 56... f4 {[%clk 0:00:29.5]} 57. Rb5+
{[%clk 0:00:42.4]} 57... Kf6 {[%clk 0:00:28.3]} 58. Rxg5 {[%clk 0:00:32.8]}
58... Kxg5 {[%clk 0:00:26.7]} 59. Nd5 {[%clk 0:00:31.6]} 59... Kg4 {[%clk
0:00:25.4]} 60. Nc3 {[%clk 0:00:28.4]} 60... Kf5 {[%clk 0:00:22.1]} 61. Nd1
{[%clk 0:00:22.3]} 61... Kg4 {[%clk 0:00:20.5]} 62. Nc3 {[%clk 0:00:18.9]} 62...
Kf5 {[%clk 0:00:19.7]} 63. Nd5 {[%clk 0:00:17.9]} 63... Ke5 {[%clk 0:00:18.7]}
64. Ne7 {[%clk 0:00:15.8]} 64... Kd4 {[%clk 0:00:17.2]} 65. Ng6 {[%clk
0:00:14.4]} 65... f3+ {[%clk 0:00:15.6]} 66. Ke1 {[%clk 0:00:12.7]} 66... Kd3
{[%clk 0:00:14.8]} 67. Nf4+ {[%clk 0:00:11.1]} 67... Kd4 {[%clk 0:00:13.6]} 68.
Ne6+ {[%clk 0:00:10.2]} 68... Ke5 {[%clk 0:00:12.7]} 69. Ng5 {[%clk 0:00:08.6]}
69... Kf4 {[%clk 0:00:11.5]} 70. Nh3+ {[%clk 0:00:07.1]} 70... Ke5 {[%clk
0:00:10.7]} 71. Kd2 {[%clk 0:00:05.8]} 71... Kd4 {[%clk 0:00:10]} 72. Ng5 {[%clk
0:00:05]} 72... Ke5 {[%clk 0:00:02.7]} 73. Ke3 {[%clk 0:00:04.1]} 73... Kf5
{[%clk 0:00:02.3]} 74. Nxf3 {[%clk 0:00:03.8]} 1-0

[Event "Live Chess"]
[Site "Chess.com"]
[Date "2024.06.02"]
[Round "-"]
[White "McFim"]
[Black "Zhevzh1k7"]
[Result "1-0"]
[WhiteElo "1818"]
[BlackElo "1121"]
[TimeControl "300"]
[EndTime "8:56:37 PDT"]
[Termination "McFim won by checkmate"]

1. e4 {[%clk 0:04:58.1]} 1... c6 {[%clk 0:04:59.2]} 2. d4 {[%clk 0:04:56.8]}
2... d5 {[%clk 0:04:59.1]} 3. exd5 {[%clk 0:04:56.7]} 3... cxd5 {[%clk
0:04:57.2]} 4. Bd3 {[%clk 0:04:56.6]} 4... Nc6 {[%clk 0:04:54.9]} 5. c3 {[%clk
0:04:55.9]} 5... Nf6 {[%clk 0:04:52.7]} 6. Bf4 {[%clk 0:04:54.8]} 6... e6 {[%clk
0:04:48.2]} 7. Nf3 {[%clk 0:04:54.1]} 7... Bd6 {[%clk 0:04:47.6]} 8. Bxd6 {[%clk
0:04:53.4]} 8... Qxd6 {[%clk 0:04:46.9]} 9. Nbd2 {[%clk 0:04:52.9]} 9... Bd7
{[%clk 0:04:46.3]} 10. O-O {[%clk 0:04:51.1]} 10... O-O {[%clk 0:04:45.8]} 11.
Qe1 {[%clk 0:04:49.9]} 11... Rac8 {[%clk 0:04:41.4]} 12. Ne5 {[%clk 0:04:48.4]}
12... Rfe8 {[%clk 0:04:35.3]} 13. f4 {[%clk 0:04:46.9]} 13... Qc7 {[%clk
0:04:24.2]} 14. Rf3 {[%clk 0:04:43.8]} 14... Nxe5 {[%clk 0:04:20.3]} 15. fxe5
{[%clk 0:04:42.5]} 15... Nh5 {[%clk 0:04:11.5]} 16. Qh4 {[%clk 0:04:34.4]} 16...
g6 {[%clk 0:04:06.8]} 17. g4 {[%clk 0:04:29]} 17... Ng7 {[%clk 0:04:02.6]} 18.
Rh3 {[%clk 0:04:26.7]} 18... h5 {[%clk 0:03:57.2]} 19. gxh5 {[%clk 0:04:25.6]}
19... gxh5 {[%clk 0:03:56.4]} 20. Rg3 {[%clk 0:04:20.4]} 20... Kf8 {[%clk
0:03:44.9]} 21. Qf6 {[%clk 0:04:17.5]} 21... Nf5 {[%clk 0:03:33.9]} 22. Bxf5
{[%clk 0:04:09.7]} 22... exf5 {[%clk 0:03:32]} 23. Rg7 {[%clk 0:03:59.3]} 23...
Be6 {[%clk 0:03:22.3]} 24. Rh7 {[%clk 0:03:56.5]} 24... Qe7 {[%clk 0:02:54.1]}
25. Rh8# {[%clk 0:03:53.5]} 1-0

[Event "Live Chess"]
[Site "Chess.com"]
[Date "2024.06.02"]
[Round "-"]
[White "grillage"]
[Black "BishopofWells"]
[Result "1-0"]
[WhiteElo "1883"]
[BlackElo "1577"]
[TimeControl "300"]
[EndTime "8:56:38 PDT"]
[Termination "grillage won by resignation"]

1. d4 {[%clk 0:04:57.4]} 1... d5 {[%clk 0:04:58.5]} 2. Nf3 {[%clk 0:04:56.2]}
2... h6 {[%clk 0:04:56.6]} 3. c4 {[%clk 0:04:55.5]} 3... e6 {[%clk 0:04:54.6]}
4. cxd5 {[%clk 0:04:54.1]} 4... exd5 {[%clk 0:04:53]} 5. Nc3 {[%clk 0:04:53.5]}
5... c6 {[%clk 0:04:52.1]} 6. Qc2 {[%clk 0:04:51.9]} 6... Nf6 {[%clk 0:04:49.9]}
7. Bf4 {[%clk 0:04:50.9]} 7... Bd6 {[%clk 0:04:48.4]} 8. Bxd6 {[%clk 0:04:48.9]}
8... Qxd6 {[%clk 0:04:47.6]} 9. e3 {[%clk 0:04:48.4]} 9... Bg4 {[%clk
0:04:42.4]} 10. Ne5 {[%clk 0:04:46.8]} 10... Bh5 {[%clk 0:04:37.4]} 11. Bd3
{[%clk 0:04:45.9]} 11... Nbd7 {[%clk 0:04:32.5]} 12. f4 {[%clk 0:04:42.7]} 12...
O-O-O {[%clk 0:04:25.3]} 13. h3 {[%clk 0:04:39.4]} 13... Rde8 {[%clk 0:04:17.1]}
14. g4 {[%clk 0:04:38.1]} 14... Bxg4 {[%clk 0:04:09.6]} 15. hxg4 {[%clk
0:04:35.4]} 15... Nh7 {[%clk 0:03:58]} 16. O-O-O {[%clk 0:04:31.2]} 16... f6
{[%clk 0:03:49.3]} 17. Nxd7 {[%clk 0:04:25.1]} 17... Qxd7 {[%clk 0:03:47.5]} 18.
Bxh7 {[%clk 0:04:24.3]} 18... Qxg4 {[%clk 0:03:44.3]} 19. Bf5+ {[%clk
0:04:22.9]} 1-0

[Event "Live Chess"]
[Site "Chess.com"]
[Date "2024.06.02"]
[Round "-"]
[White "elephantgerrald"]
[Black "TC2304"]
[Result "0-1"]
[WhiteElo "913"]
[BlackElo "2317"]
[TimeControl "300"]
[EndTime "8:56:40 PDT"]
[Termination "TC2304 won by checkmate"]

1. e4 {[%clk 0:04:58.6]} 1... c5 {[%clk 0:04:44]} 2. Nf3 {[%clk 0:04:57.2]} 2...
a6 {[%clk 0:04:41.7]} 3. Bc4 {[%clk 0:04:54.8]} 3... e6 {[%clk 0:04:40.5]} 4.
O-O {[%clk 0:04:53]} 4... Nc6 {[%clk 0:04:40.2]} 5. Nc3 {[%clk 0:04:49.3]} 5...
Be7 {[%clk 0:04:39.8]} 6. h3 {[%clk 0:04:47.1]} 6... d6 {[%clk 0:04:37.8]} 7. b3
{[%clk 0:04:43.3]} 7... Nf6 {[%clk 0:04:37.4]} 8. Bb2 {[%clk 0:04:38.7]} 8... b5
{[%clk 0:04:37]} 9. Be2 {[%clk 0:04:36.3]} 9... b4 {[%clk 0:04:36.3]} 10. Na4
{[%clk 0:04:33.7]} 10... Nxe4 {[%clk 0:04:35.2]} 11. d3 {[%clk 0:04:27.3]} 11...
Nf6 {[%clk 0:04:33.9]} 12. Bxf6 {[%clk 0:04:25]} 12... Bxf6 {[%clk 0:04:32.9]}
13. Rb1 {[%clk 0:04:23.2]} 13... O-O {[%clk 0:04:31.6]} 14. Nb2 {[%clk
0:04:19.1]} 14... Bb7 {[%clk 0:04:30]} 15. Qd2 {[%clk 0:04:14.2]} 15... Nd4
{[%clk 0:04:29.6]} 16. Nxd4 {[%clk 0:04:00.3]} 16... Bxd4 {[%clk 0:04:29.5]} 17.
Nc4 {[%clk 0:03:50.9]} 17... a5 {[%clk 0:04:13.5]} 18. a4 {[%clk 0:03:41.7]}
18... bxa3 {[%clk 0:04:10.1]} 19. Nxa3 {[%clk 0:03:38.5]} 19... Qf6 {[%clk
0:04:08.6]} 20. Nc4 {[%clk 0:03:11.9]} 20... Qg6 {[%clk 0:04:07]} 21. g3 {[%clk
0:02:39.7]} 21... Qxg3# {[%clk 0:04:04.5]} 0-1

[Event "Live Chess"]
[Site "Chess.com"]
[Date "2024.06.02"]
[Round "-"]
[White "Trendle"]
[Black "resipsa6"]
[Result "1-0"]
[WhiteElo "2600"]
[BlackElo "2015"]
[TimeControl "300"]
[EndTime "8:56:45 PDT"]
[Termination "Trendle won by resignation"]

1. e4 {[%clk 0:04:58.5]} 1... e5 {[%clk 0:04:59]} 2. Nf3 {[%clk 0:04:57.6]} 2...
Nf6 {[%clk 0:04:58.2]} 3. d4 {[%clk 0:04:56.4]} 3... Nxe4 {[%clk 0:04:57]} 4.
Bd3 {[%clk 0:04:55]} 4... d5 {[%clk 0:04:55.8]} 5. Nxe5 {[%clk 0:04:54]} 5...
Bd6 {[%clk 0:04:54.5]} 6. Nc3 {[%clk 0:04:52.2]} 6... Nxc3 {[%clk 0:04:53]} 7.
bxc3 {[%clk 0:04:52.1]} 7... Bxe5 {[%clk 0:04:52.3]} 8. dxe5 {[%clk 0:04:52]}
8... Qe7 {[%clk 0:04:43.6]} 9. O-O {[%clk 0:04:50.2]} 9... Be6 {[%clk
0:04:42.1]} 10. Rb1 {[%clk 0:04:46]} 10... c6 {[%clk 0:04:39.7]} 11. f4 {[%clk
0:04:45.6]} 11... g6 {[%clk 0:04:37.7]} 12. f5 {[%clk 0:04:43.5]} 12... Bxf5
{[%clk 0:04:36.1]} 13. Bxf5 {[%clk 0:04:40.3]} 13... gxf5 {[%clk 0:04:34.9]} 14.
Rxf5 {[%clk 0:04:39.2]} 14... b6 {[%clk 0:04:31.8]} 15. Qf3 {[%clk 0:04:31.6]}
15... Nd7 {[%clk 0:04:24]} 16. Bg5 {[%clk 0:04:29.8]} 16... Qe6 {[%clk
0:04:20.5]} 17. Rf1 {[%clk 0:04:24.5]} 17... h6 {[%clk 0:03:59.2]} 18. Bh4
{[%clk 0:04:17.7]} 18... O-O {[%clk 0:03:29.2]} 19. Bf6 {[%clk 0:03:58]} 19...
Nxf6 {[%clk 0:03:17.3]} 20. Rxf6 {[%clk 0:03:57.4]} 20... Qxe5 {[%clk 0:03:04]}
21. Rxh6 {[%clk 0:03:53.7]} 21... Qg5 {[%clk 0:02:51.8]} 22. Rh3 {[%clk
0:03:50.4]} 1-0

[Event "Live Chess"]
[Site "Chess.com"]
[Date "2024.06.02"]
[Round "-"]
[White "Ferrarifan27"]
[Black "OnlyTheHurf"]
[Result "1-0"]
[WhiteElo "2157"]
[BlackElo "1146"]
[TimeControl "300"]
[EndTime "8:56:46 PDT"]
[Termination "Ferrarifan27 won by resignation"]

1. e4 {[%clk 0:04:58]} 1... e5 {[%clk 0:04:58.7]} 2. Nf3 {[%clk 0:04:57]} 2...
Nc6 {[%clk 0:04:56.9]} 3. Bb5 {[%clk 0:04:55.9]} 3... Qf6 {[%clk 0:04:50.4]} 4.
Nc3 {[%clk 0:04:52.7]} 4... Bc5 {[%clk 0:04:48.5]} 5. Nd5 {[%clk 0:04:50.8]}
5... Qd6 {[%clk 0:04:46.8]} 6. d3 {[%clk 0:04:47.7]} 6... Nd4 {[%clk 0:04:44.6]}
7. Nxd4 {[%clk 0:04:46.2]} 7... exd4 {[%clk 0:04:43.8]} 8. Bf4 {[%clk 0:04:39]}
8... Qg6 {[%clk 0:04:19.9]} 9. Nxc7+ {[%clk 0:04:38]} 9... Kf8 {[%clk
0:04:16.1]} 10. Nxa8 {[%clk 0:04:36.3]} 10... Qxg2 {[%clk 0:04:10.8]} 11. Rf1
{[%clk 0:04:33.4]} 11... Nf6 {[%clk 0:04:01.9]} 12. Nc7 {[%clk 0:04:26.5]} 12...
g6 {[%clk 0:03:53.8]} 13. Nd5 {[%clk 0:04:19.6]} 13... Nxd5 {[%clk 0:03:50.5]}
14. exd5 {[%clk 0:04:18.9]} 14... Qxd5 {[%clk 0:03:50.4]} 15. Bh6+ {[%clk
0:04:16.2]} 15... Kg8 {[%clk 0:03:48.2]} 16. Qe2 {[%clk 0:04:15.2]} 16... Qe6
{[%clk 0:03:38.4]} 17. Qxe6 {[%clk 0:04:14]} 17... fxe6 {[%clk 0:03:38.3]} 18.
Kd2 {[%clk 0:04:11.7]} 18... Kf7 {[%clk 0:03:35.9]} 19. Rae1 {[%clk 0:04:09.1]}
19... Kf6 {[%clk 0:03:34.8]} 20. Re4 {[%clk 0:04:07.3]} 20... g5 {[%clk
0:03:34.1]} 21. Rg4 {[%clk 0:04:04.9]} 21... Rg8 {[%clk 0:03:32.5]} 22. h4
{[%clk 0:04:03.5]} 22... Rg6 {[%clk 0:03:28.8]} 23. Bxg5+ {[%clk 0:04:02.1]}
23... Kf5 {[%clk 0:03:27.2]} 24. Rgg1 {[%clk 0:04:00.4]} 24... h6 {[%clk
0:03:25.6]} 25. h5 {[%clk 0:03:59.1]} 25... Rxg5 {[%clk 0:03:24]} 26. Rxg5+
{[%clk 0:03:57.7]} 26... hxg5 {[%clk 0:03:23.9]} 27. h6 {[%clk 0:03:57.1]} 27...
Kg6 {[%clk 0:03:22.8]} 28. Rh1 {[%clk 0:03:56.7]} 28... Kh7 {[%clk 0:03:21.9]}
29. Ke2 {[%clk 0:03:55.4]} 29... a6 {[%clk 0:03:21.2]} 30. Ba4 {[%clk 0:03:54]}
30... b5 {[%clk 0:03:20.2]} 31. Bb3 {[%clk 0:03:53.1]} 31... Bb7 {[%clk
0:03:19.8]} 32. Rh5 {[%clk 0:03:49.8]} 32... d5 {[%clk 0:03:15.1]} 33. Kf3
{[%clk 0:03:47.4]} 33... Bc6 {[%clk 0:02:58]} 34. Rxg5 {[%clk 0:03:46.1]} 34...
Kxh6 {[%clk 0:02:55.3]} 35. Rg8 {[%clk 0:03:43.2]} 35... e5 {[%clk 0:02:52.3]}
36. Rc8 {[%clk 0:03:41.6]} 36... Bd7 {[%clk 0:02:50.4]} 37. Rxc5 {[%clk
0:03:40.2]} 37... Bf5 {[%clk 0:02:45.4]} 38. Bxd5 {[%clk 0:03:37.9]} 38... Kg5
{[%clk 0:02:44.5]} 39. Be4 {[%clk 0:03:36.9]} 39... Bg4+ {[%clk 0:02:44.4]} 40.
Kg3 {[%clk 0:03:35.8]} 40... Bd1 {[%clk 0:02:43.4]} 41. Rxe5+ {[%clk 0:03:34.6]}
41... Kf6 {[%clk 0:02:41.3]} 42. Rf5+ {[%clk 0:03:34]} 42... Ke6 {[%clk
0:02:40.3]} 43. c3 {[%clk 0:03:33.6]} 43... dxc3 {[%clk 0:02:39.1]} 44. bxc3
{[%clk 0:03:33.5]} 44... Bc2 {[%clk 0:02:36.6]} 45. Rf4 {[%clk 0:03:31.1]} 45...
Bb1 {[%clk 0:02:34.6]} 46. Rh4 {[%clk 0:03:29.8]} 46... Kd7 {[%clk 0:02:30.5]}
47. Rh6 {[%clk 0:03:29.1]} 47... Kc7 {[%clk 0:02:29.7]} 48. Rxa6 {[%clk
0:03:27.8]} 48... b4 {[%clk 0:02:25.9]} 49. cxb4 {[%clk 0:03:26.5]} 49... Bc2
{[%clk 0:02:24.7]} 50. a4 {[%clk 0:03:25.3]} 50... Bb3 {[%clk 0:02:23.1]} 51.
Rc6+ {[%clk 0:03:23.8]} 51... Kd7 {[%clk 0:02:21.1]} 52. a5 {[%clk 0:03:23.1]}
52... Ba4 {[%clk 0:02:19.9]} 53. Rc5 {[%clk 0:03:21.4]} 53... Bc2 {[%clk
0:02:18.2]} 54. Rxc2 {[%clk 0:03:19]} 1-0

[Event "Live Chess"]
[Site "Chess.com"]
[Date "2024.06.02"]
[Round "-"]
[White "friarnator"]
[Black "ACM42"]
[Result "0-1"]
[WhiteElo "2199"]
[BlackElo "2158"]
[TimeControl "300"]
[EndTime "8:57:04 PDT"]
[Termination "ACM42 won by resignation"]

1. d4 {[%clk 0:04:58]} 1... Nf6 {[%clk 0:04:59.9]} 2. Nc3 {[%clk 0:04:57.2]}
2... g6 {[%clk 0:04:59.8]} 3. Bf4 {[%clk 0:04:56.2]} 3... Bg7 {[%clk 0:04:59.7]}
4. Qd2 {[%clk 0:04:55.8]} 4... d6 {[%clk 0:04:57.5]} 5. Bh6 {[%clk 0:04:54.8]}
5... O-O {[%clk 0:04:51]} 6. h4 {[%clk 0:04:53.6]} 6... c5 {[%clk 0:04:49.6]} 7.
Nf3 {[%clk 0:04:50.5]} 7... cxd4 {[%clk 0:04:48]} 8. Nxd4 {[%clk 0:04:48.8]}
8... Nc6 {[%clk 0:04:47.3]} 9. Nxc6 {[%clk 0:04:46.8]} 9... bxc6 {[%clk
0:04:46.3]} 10. h5 {[%clk 0:04:46.4]} 10... e5 {[%clk 0:04:40.6]} 11. O-O-O
{[%clk 0:04:42.1]} 11... d5 {[%clk 0:04:37.1]} 12. hxg6 {[%clk 0:04:37.5]} 12...
fxg6 {[%clk 0:04:34.1]} 13. Bxg7 {[%clk 0:04:36.6]} 13... Kxg7 {[%clk
0:04:33.4]} 14. Qh6+ {[%clk 0:04:35.6]} 14... Kg8 {[%clk 0:04:32.4]} 15. e4
{[%clk 0:04:30.8]} 15... d4 {[%clk 0:04:27.9]} 16. Bc4+ {[%clk 0:04:29.8]} 16...
Kh8 {[%clk 0:04:25.4]} 17. f4 {[%clk 0:04:04.3]} 17... Qe7 {[%clk 0:04:13.3]}
18. fxe5 {[%clk 0:03:57.5]} 18... Ng4 {[%clk 0:04:11.3]} 19. Qh4 {[%clk
0:03:44.1]} 19... Qxh4 {[%clk 0:04:07.3]} 20. Rxh4 {[%clk 0:03:44]} 20... dxc3
{[%clk 0:04:02.4]} 21. Rdh1 {[%clk 0:03:39.6]} 21... h5 {[%clk 0:03:58.6]} 22.
e6 {[%clk 0:03:38.5]} 22... Re8 {[%clk 0:03:57.1]} 23. Rxg4 {[%clk 0:03:36.8]}
23... Kg7 {[%clk 0:03:53.8]} 24. Rg5 {[%clk 0:03:25.9]} 24... cxb2+ {[%clk
0:03:51.6]} 25. Kxb2 {[%clk 0:03:24.9]} 25... Kf6 {[%clk 0:03:47.6]} 26. Rc5
{[%clk 0:03:21.5]} 26... Rb8+ {[%clk 0:03:35.7]} 27. Kc3 {[%clk 0:03:20]} 27...
Bxe6 {[%clk 0:03:34.1]} 28. Rxc6 {[%clk 0:03:06.5]} 28... Rbc8 {[%clk
0:03:32.8]} 29. e5+ {[%clk 0:02:44.1]} 29... Kg7 {[%clk 0:03:21.5]} 30. Rxe6
{[%clk 0:02:34]} 30... Rxe6 {[%clk 0:03:19.2]} 31. Kd4 {[%clk 0:02:32.9]} 31...
Rec6 {[%clk 0:03:14.3]} 32. Bd3 {[%clk 0:02:26.5]} 32... Rd8+ {[%clk 0:03:09.8]}
33. Ke4 {[%clk 0:02:21.1]} 33... Rc5 {[%clk 0:03:08.2]} 34. Rb1 {[%clk
0:02:17.7]} 34... Rd7 {[%clk 0:03:05.6]} 35. Rb5 {[%clk 0:02:02.6]} 35... Rcc7
{[%clk 0:02:51.7]} 36. e6 {[%clk 0:01:58.2]} 36... Re7 {[%clk 0:02:50]} 37. Kd5
{[%clk 0:01:52.9]} 37... Kf6 {[%clk 0:02:39.3]} 38. Rb8 {[%clk 0:01:35.9]} 38...
Rxe6 {[%clk 0:02:30.8]} 39. Rf8+ {[%clk 0:01:29.5]} 39... Rf7 {[%clk 0:02:29.5]}
40. Rg8 {[%clk 0:01:18.4]} 40... Rd7+ {[%clk 0:02:24.4]} 41. Kc5 {[%clk
0:01:14.2]} 41... Kg5 {[%clk 0:02:22.6]} 42. a4 {[%clk 0:01:01.2]} 42... Rde7
{[%clk 0:02:19.4]} 43. Kd4 {[%clk 0:00:47.6]} 43... h4 {[%clk 0:02:17.3]} 44.
Rf8 {[%clk 0:00:42.7]} 44... Rf6 {[%clk 0:02:13.5]} 45. Rh8 {[%clk 0:00:41.2]}
45... Rf4+ {[%clk 0:02:12.2]} 46. Kc3 {[%clk 0:00:39.8]} 46... Rxa4 {[%clk
0:02:10.1]} 47. Kd2 {[%clk 0:00:38]} 47... Rg4 {[%clk 0:02:08.3]} 48. Kc3 {[%clk
0:00:35.5]} 48... Rxg2 {[%clk 0:02:06.8]} 49. Rf8 {[%clk 0:00:32.9]} 49... Rg3
{[%clk 0:02:05.6]} 50. Rf1 {[%clk 0:00:31.5]} 50... h3 {[%clk 0:02:04.5]} 51.
Rh1 {[%clk 0:00:29.8]} 51... Kh4 {[%clk 0:02:03.1]} 52. Kd2 {[%clk 0:00:28.5]}
52... g5 {[%clk 0:02:01.3]} 53. Kc3 {[%clk 0:00:27.7]} 0-1

[Event "Live Chess"]
[Site "Chess.com"]
[Date "2024.06.02"]
[Round "-"]
[White "juniortay"]
[Black "GerardATHart"]
[Result "1-0"]
[WhiteElo "2251"]
[BlackElo "1417"]
[TimeControl "300"]
[EndTime "8:57:15 PDT"]
[Termination "juniortay won by resignation"]

1. e4 {[%clk 0:04:57.3]} 1... e5 {[%clk 0:04:58]} 2. Nc3 {[%clk 0:04:56.1]} 2...
Nf6 {[%clk 0:04:56.1]} 3. f4 {[%clk 0:04:54.5]} 3... d5 {[%clk 0:04:54.1]} 4.
fxe5 {[%clk 0:04:53.4]} 4... Nxe4 {[%clk 0:04:52.7]} 5. d3 {[%clk 0:04:52.4]}
5... Nc5 {[%clk 0:04:46.5]} 6. d4 {[%clk 0:04:47.7]} 6... Ne6 {[%clk 0:04:42.3]}
7. Nf3 {[%clk 0:04:46.6]} 7... b6 {[%clk 0:04:35.2]} 8. Bd3 {[%clk 0:04:42.3]}
8... Bb7 {[%clk 0:04:32.8]} 9. O-O {[%clk 0:04:40.6]} 9... c5 {[%clk 0:04:29.1]}
10. Kh1 {[%clk 0:04:24.5]} 10... cxd4 {[%clk 0:04:18.8]} 11. Nb5 {[%clk
0:04:20]} 11... a6 {[%clk 0:04:10.6]} 12. Nbxd4 {[%clk 0:04:18.7]} 12... Bc5
{[%clk 0:04:08]} 13. Nxe6 {[%clk 0:04:11.7]} 13... fxe6 {[%clk 0:04:06.1]} 14.
Ng5 {[%clk 0:04:09.7]} 14... Qe7 {[%clk 0:03:42.1]} 15. Qh5+ {[%clk 0:04:02.7]}
15... g6 {[%clk 0:03:38.6]} 16. Bxg6+ {[%clk 0:04:00.6]} 1-0